[Event "Late-Titled-Tuesday-Blitz-May-07-2024"]
[Site "Chess.com"]
[Date "2024.05.07"]
[Round "1"]
[White "CrushingKings"]
[Black "esrosenberg"]
[Result "0-1"]
[WhiteElo "2627"]
[BlackElo "2334"]
[TimeControl "180+1"]
[EndTime "14:07:27 PDT"]
[Termination "esrosenberg won by resignation"]

1. Nf3 {[%clk 0:03:00.9]} 1... d5 {[%clk 0:02:59.6]} 2. g3 {[%clk 0:03:01]} 2...
Nd7 {[%clk 0:02:59.7]} 3. d4 {[%clk 0:03:00.7]} 3... Nb6 {[%clk 0:02:59.2]} 4.
Nh4 {[%clk 0:03:01.2]} 4... Nf6 {[%clk 0:02:51.5]} 5. Bg2 {[%clk 0:03:01.6]}
5... h6 {[%clk 0:02:40.2]} 6. O-O {[%clk 0:03:01.6]} 6... g5 {[%clk 0:02:37.7]}
7. Nf3 {[%clk 0:03:01.6]} 7... Bf5 {[%clk 0:02:38.3]} 8. b3 {[%clk 0:03:01.7]}
8... e6 {[%clk 0:02:38.3]} 9. Bb2 {[%clk 0:03:02]} 9... c6 {[%clk 0:02:39]} 10.
Nbd2 {[%clk 0:03:02.4]} 10... a5 {[%clk 0:02:35.5]} 11. Ne5 {[%clk 0:03:03]}
11... a4 {[%clk 0:02:34.3]} 12. c4 {[%clk 0:03:03.3]} 12... a3 {[%clk
0:02:33.6]} 13. Bc3 {[%clk 0:03:03.5]} 13... Be7 {[%clk 0:02:26]} 14. Re1 {[%clk
0:03:03.5]} 14... O-O {[%clk 0:02:25.3]} 15. f3 {[%clk 0:03:03.5]} 15... Bh7
{[%clk 0:02:23.7]} 16. e4 {[%clk 0:03:03.3]} 16... dxc4 {[%clk 0:02:16.9]} 17.
Ndxc4 {[%clk 0:03:03.4]} 17... Nxc4 {[%clk 0:02:13.4]} 18. bxc4 {[%clk
0:03:01.6]} 18... Qc7 {[%clk 0:01:49.2]} 19. f4 {[%clk 0:03:00.4]} 19... gxf4
{[%clk 0:01:19.3]} 20. gxf4 {[%clk 0:02:59.8]} 20... Nd7 {[%clk 0:01:02.4]} 21.
Qh5 {[%clk 0:02:54]} 21... Nxe5 {[%clk 0:01:00.3]} 22. fxe5 {[%clk 0:02:48.1]}
22... Kh8 {[%clk 0:01:00.6]} 23. Rf1 {[%clk 0:02:33.5]} 23... Bg5 {[%clk
0:00:52.6]} 24. Rf3 {[%clk 0:02:33.7]} 24... Bg6 {[%clk 0:00:50.4]} 25. Qg4
{[%clk 0:02:29.6]} 25... Rg8 {[%clk 0:00:49.1]} 26. Rh3 {[%clk 0:02:11.2]} 26...
Bh7 {[%clk 0:00:44.7]} 27. Qf3 {[%clk 0:01:56.7]} 27... Rg7 {[%clk 0:00:39.2]}
28. Kh1 {[%clk 0:01:56.2]} 28... Rag8 {[%clk 0:00:39.6]} 29. Rf1 {[%clk
0:01:52.2]} 29... b5 {[%clk 0:00:27.2]} 30. c5 {[%clk 0:01:41.1]} 30... Qb7
{[%clk 0:00:22.6]} 31. Bb4 {[%clk 0:01:33.8]} 31... Qd7 {[%clk 0:00:21.7]} 32.
Qf2 {[%clk 0:01:29.2]} 32... Qa7 {[%clk 0:00:14]} 33. Rxa3 {[%clk 0:01:28.9]}
33... Qe7 {[%clk 0:00:10.8]} 34. Rh3 {[%clk 0:01:26.2]} 34... Be3 {[%clk
0:00:07.2]} 35. Qxe3 {[%clk 0:01:25]} 35... Rxg2 {[%clk 0:00:07.3]} 36. Qxh6
{[%clk 0:01:24.5]} 36... R8g7 {[%clk 0:00:04.5]} 37. Be1 {[%clk 0:01:10.3]}
37... Kg8 {[%clk 0:00:04.5]} 38. Qf4 {[%clk 0:00:20.5]} 38... Qg5 {[%clk
0:00:01.6]} 39. Qf3 {[%clk 0:00:09.3]} 39... Rg1+ {[%clk 0:00:00.8]} 0-1

[Event "Late-Titled-Tuesday-Blitz-May-07-2024"]
[Site "Chess.com"]
[Date "2024.05.07"]
[Round "1"]
[White "Zq1"]
[Black "besarquis"]
[Result "1-0"]
[WhiteElo "2621"]
[BlackElo "2257"]
[TimeControl "180+1"]
[EndTime "14:07:27 PDT"]
[Termination "Zq1 won by checkmate"]

1. d4 {[%clk 0:02:59.6]} 1... Nf6 {[%clk 0:02:58.9]} 2. c4 {[%clk 0:02:59]} 2...
e6 {[%clk 0:02:53.6]} 3. g3 {[%clk 0:02:57.2]} 3... d5 {[%clk 0:02:50]} 4. Bg2
{[%clk 0:02:57.1]} 4... Be7 {[%clk 0:02:49.5]} 5. Nf3 {[%clk 0:02:56.2]} 5...
O-O {[%clk 0:02:48.3]} 6. Qc2 {[%clk 0:02:56.2]} 6... dxc4 {[%clk 0:02:47.1]} 7.
Qxc4 {[%clk 0:02:55.9]} 7... a6 {[%clk 0:02:47.4]} 8. Qc2 {[%clk 0:02:53.2]}
8... Nbd7 {[%clk 0:02:01.3]} 9. O-O {[%clk 0:02:50]} 9... c5 {[%clk 0:01:59.6]}
10. Rd1 {[%clk 0:02:45.8]} 10... Qc7 {[%clk 0:01:38.8]} 11. Bf4 {[%clk
0:02:43.9]} 11... Bd6 {[%clk 0:01:35.6]} 12. Bxd6 {[%clk 0:02:43]} 12... Qxd6
{[%clk 0:01:35.8]} 13. dxc5 {[%clk 0:02:29.7]} 13... Qxc5 {[%clk 0:01:34.9]} 14.
Qxc5 {[%clk 0:02:24.2]} 14... Nxc5 {[%clk 0:01:34.9]} 15. Ne5 {[%clk 0:02:22.2]}
15... Rb8 {[%clk 0:01:27.6]} 16. Na3 {[%clk 0:02:15]} 16... Ncd7 {[%clk
0:01:25.8]} 17. Nac4 {[%clk 0:01:52.5]} 17... b5 {[%clk 0:01:05.8]} 18. Nxd7
{[%clk 0:01:49.5]} 18... Bxd7 {[%clk 0:01:01.6]} 19. Ne5 {[%clk 0:01:49.1]}
19... Rfd8 {[%clk 0:00:56.6]} 20. Rd6 {[%clk 0:01:40.8]} 20... Be8 {[%clk
0:00:44.8]} 21. Rad1 {[%clk 0:01:37.2]} 21... Rxd6 {[%clk 0:00:36]} 22. Rxd6
{[%clk 0:01:36.6]} 22... a5 {[%clk 0:00:36.4]} 23. Ra6 {[%clk 0:01:26.4]} 23...
a4 {[%clk 0:00:35.1]} 24. Bc6 {[%clk 0:01:19.1]} 24... Rc8 {[%clk 0:00:29.6]}
25. Kg2 {[%clk 0:01:04.6]} 25... Kf8 {[%clk 0:00:28]} 26. b3 {[%clk 0:00:52.7]}
26... axb3 {[%clk 0:00:27.5]} 27. axb3 {[%clk 0:00:52.2]} 27... Bxc6+ {[%clk
0:00:26.6]} 28. Nxc6 {[%clk 0:00:50.8]} 28... Nd5 {[%clk 0:00:25.4]} 29. Nd4
{[%clk 0:00:43.2]} 29... b4 {[%clk 0:00:23.4]} 30. e4 {[%clk 0:00:38.6]} 30...
Nc3 {[%clk 0:00:23.2]} 31. f3 {[%clk 0:00:35.7]} 31... Nb1 {[%clk 0:00:22.3]}
32. Rb6 {[%clk 0:00:32.4]} 32... Rd8 {[%clk 0:00:13.3]} 33. Rxb4 {[%clk
0:00:31.5]} 33... e5 {[%clk 0:00:13.6]} 34. Nc6 {[%clk 0:00:28.9]} 34... Rd2+
{[%clk 0:00:13.6]} 35. Kh3 {[%clk 0:00:28.9]} 35... f6 {[%clk 0:00:11.4]} 36.
Rb8+ {[%clk 0:00:27.6]} 36... Kf7 {[%clk 0:00:11.2]} 37. Rb7+ {[%clk 0:00:27.7]}
37... Kf8 {[%clk 0:00:10.7]} 38. Kg4 {[%clk 0:00:24.1]} 38... Rb2 {[%clk
0:00:09.4]} 39. Kf5 {[%clk 0:00:23]} 39... Nd2 {[%clk 0:00:06.7]} 40. Ke6 {[%clk
0:00:20.9]} 40... Rxb3 {[%clk 0:00:07]} 41. Rf7+ {[%clk 0:00:19.3]} 41... Ke8
{[%clk 0:00:05.9]} 42. Rxg7 {[%clk 0:00:19.3]} 42... Rc3 {[%clk 0:00:01.3]} 43.
Rg8# {[%clk 0:00:18.9]} 1-0

[Event "Late-Titled-Tuesday-Blitz-May-07-2024"]
[Site "Chess.com"]
[Date "2024.05.07"]
[Round "1"]
[White "honestgames"]
[Black "TheoSlade"]
[Result "1-0"]
[WhiteElo "2824"]
[BlackElo "2473"]
[TimeControl "180+1"]
[EndTime "14:07:33 PDT"]
[Termination "honestgames won by resignation"]

1. d3 {[%clk 0:02:59.8]} 1... d5 {[%clk 0:02:59.7]} 2. Nf3 {[%clk 0:02:58.1]}
2... Nf6 {[%clk 0:03:00]} 3. g3 {[%clk 0:02:58.5]} 3... e6 {[%clk 0:03:00.5]} 4.
Bg2 {[%clk 0:02:59]} 4... Be7 {[%clk 0:03:01.1]} 5. O-O {[%clk 0:02:59.5]} 5...
O-O {[%clk 0:03:01.8]} 6. Nbd2 {[%clk 0:02:57.4]} 6... c5 {[%clk 0:03:02.3]} 7.
e4 {[%clk 0:02:54.7]} 7... Nc6 {[%clk 0:03:02.6]} 8. c3 {[%clk 0:02:51.3]} 8...
b5 {[%clk 0:03:01]} 9. Re1 {[%clk 0:02:50.8]} 9... Bb7 {[%clk 0:02:54.6]} 10.
Qe2 {[%clk 0:02:48.6]} 10... Qc7 {[%clk 0:02:50.3]} 11. e5 {[%clk 0:02:43.6]}
11... Nd7 {[%clk 0:02:50.1]} 12. d4 {[%clk 0:02:43.7]} 12... cxd4 {[%clk
0:02:47.9]} 13. cxd4 {[%clk 0:02:42.3]} 13... Qb6 {[%clk 0:02:26.1]} 14. Nb3
{[%clk 0:02:17]} 14... a5 {[%clk 0:02:25.5]} 15. Be3 {[%clk 0:02:15]} 15... a4
{[%clk 0:02:24.5]} 16. Nc1 {[%clk 0:02:08.1]} 16... Ba6 {[%clk 0:02:24.4]} 17.
Nd3 {[%clk 0:02:06.4]} 17... b4 {[%clk 0:02:23.1]} 18. Qd1 {[%clk 0:01:59.1]}
18... Bxd3 {[%clk 0:02:14.5]} 19. Qxd3 {[%clk 0:01:58.4]} 19... Na5 {[%clk
0:02:12.5]} 20. b3 {[%clk 0:01:52.8]} 20... axb3 {[%clk 0:02:05]} 21. axb3
{[%clk 0:01:53.7]} 21... Rfc8 {[%clk 0:02:04.8]} 22. Bd2 {[%clk 0:01:53.9]}
22... Qa6 {[%clk 0:02:01.9]} 23. Qxa6 {[%clk 0:01:47.2]} 23... Rxa6 {[%clk
0:02:01.7]} 24. Ra2 {[%clk 0:01:28]} 24... Rca8 {[%clk 0:01:53.7]} 25. Rea1
{[%clk 0:01:23.7]} 25... Nb8 {[%clk 0:01:50.2]} 26. Bf1 {[%clk 0:01:22.5]} 26...
R6a7 {[%clk 0:01:48.7]} 27. Bb5 {[%clk 0:01:16.8]} 27... Nbc6 {[%clk 0:01:48.8]}
28. Ba4 {[%clk 0:01:06.4]} 28... f6 {[%clk 0:01:25.5]} 29. exf6 {[%clk
0:00:57.4]} 29... gxf6 {[%clk 0:01:22.9]} 30. Be3 {[%clk 0:00:48.3]} 30... Bd8
{[%clk 0:01:14.9]} 31. Rc1 {[%clk 0:00:42.7]} 31... Rc8 {[%clk 0:01:00]} 32.
Rac2 {[%clk 0:00:41.7]} 32... Ra6 {[%clk 0:00:50.7]} 33. Ne1 {[%clk 0:00:39.1]}
33... Kf7 {[%clk 0:00:28.7]} 34. Nd3 {[%clk 0:00:39]} 34... Be7 {[%clk
0:00:26.9]} 35. Bd2 {[%clk 0:00:32.8]} 35... Ke8 {[%clk 0:00:07]} 36. Nxb4
{[%clk 0:00:30.2]} 36... Bxb4 {[%clk 0:00:06.8]} 37. Bxb4 {[%clk 0:00:29.8]}
37... Nb7 {[%clk 0:00:04.3]} 38. Bxc6+ {[%clk 0:00:27.9]} 38... Kf7 {[%clk
0:00:02.4]} 39. Bxb7 {[%clk 0:00:27.4]} 39... Rxc2 {[%clk 0:00:03]} 40. Rxc2
{[%clk 0:00:27.5]} 40... Rb6 {[%clk 0:00:03.6]} 41. Rc7+ {[%clk 0:00:26.9]}
41... Kg6 {[%clk 0:00:03.1]} 42. Bd2 {[%clk 0:00:24.9]} 42... Rxb3 {[%clk
0:00:03]} 43. Be3 {[%clk 0:00:25.3]} 43... Rb1+ {[%clk 0:00:01.7]} 44. Kg2
{[%clk 0:00:25]} 44... h5 {[%clk 0:00:02.6]} 45. h4 {[%clk 0:00:24.4]} 45... Kf5
{[%clk 0:00:02.7]} 46. Bc8 {[%clk 0:00:24.7]} 46... Ke4 {[%clk 0:00:03]} 47.
Bxe6 {[%clk 0:00:23.9]} 47... f5 {[%clk 0:00:03.6]} 48. Re7 {[%clk 0:00:21.5]}
1-0

[Event "Late-Titled-Tuesday-Blitz-May-07-2024"]
[Site "Chess.com"]
[Date "2024.05.07"]
[Round "1"]
[White "nochewycandy"]
[Black "SharathRk6"]
[Result "1/2-1/2"]
[WhiteElo "2803"]
[BlackElo "2474"]
[TimeControl "180+1"]
[EndTime "14:07:34 PDT"]
[Termination "Game drawn by repetition"]

1. Nf3 {[%clk 0:02:59.9]} 1... Nf6 {[%clk 0:02:59.7]} 2. c4 {[%clk 0:02:59]}
2... e6 {[%clk 0:02:58.2]} 3. g3 {[%clk 0:02:58.8]} 3... d5 {[%clk 0:02:58.5]}
4. Bg2 {[%clk 0:02:59.7]} 4... Be7 {[%clk 0:02:58.7]} 5. O-O {[%clk 0:03:00.5]}
5... O-O {[%clk 0:02:59.1]} 6. b3 {[%clk 0:03:01.1]} 6... b6 {[%clk 0:02:58.9]}
7. Bb2 {[%clk 0:03:01.5]} 7... Bb7 {[%clk 0:02:59.6]} 8. e3 {[%clk 0:03:01.9]}
8... Nbd7 {[%clk 0:02:59.7]} 9. Qe2 {[%clk 0:03:02.6]} 9... c5 {[%clk
0:02:59.4]} 10. Nc3 {[%clk 0:03:01.4]} 10... Rc8 {[%clk 0:02:58.1]} 11. Rfd1
{[%clk 0:03:00.7]} 11... Ne4 {[%clk 0:02:49.3]} 12. Rac1 {[%clk 0:02:53.5]}
12... Nxc3 {[%clk 0:02:44.3]} 13. Bxc3 {[%clk 0:02:52.6]} 13... Bf6 {[%clk
0:02:45]} 14. cxd5 {[%clk 0:02:49.6]} 14... exd5 {[%clk 0:02:42.3]} 15. Bxf6
{[%clk 0:02:48.5]} 15... Nxf6 {[%clk 0:02:42.1]} 16. d4 {[%clk 0:02:49.4]} 16...
Re8 {[%clk 0:02:35.8]} 17. Qb5 {[%clk 0:02:41.7]} 17... a6 {[%clk 0:02:18.2]}
18. Qe2 {[%clk 0:02:29]} 18... Ne4 {[%clk 0:02:16.9]} 19. dxc5 {[%clk
0:02:24.2]} 19... bxc5 {[%clk 0:02:15.4]} 20. Qb2 {[%clk 0:02:22.5]} 20... Qf6
{[%clk 0:02:11.8]} 21. Qxf6 {[%clk 0:02:21.8]} 21... Nxf6 {[%clk 0:02:12]} 22.
Nh4 {[%clk 0:02:15.8]} 22... g6 {[%clk 0:02:07.3]} 23. Bh3 {[%clk 0:02:13.1]}
23... Rc7 {[%clk 0:02:00.5]} 24. Ng2 {[%clk 0:02:13.4]} 24... g5 {[%clk
0:01:56.7]} 25. Ne1 {[%clk 0:02:12.1]} 25... Ne4 {[%clk 0:01:45.6]} 26. Bg2
{[%clk 0:02:04.1]} 26... Ree7 {[%clk 0:01:40.1]} 27. Nd3 {[%clk 0:02:01.9]}
27... c4 {[%clk 0:01:34.9]} 28. Bxe4 {[%clk 0:02:01.3]} 28... dxe4 {[%clk
0:01:27.3]} 29. Nb4 {[%clk 0:01:57]} 29... cxb3 {[%clk 0:01:16.4]} 30. axb3
{[%clk 0:01:57.9]} 30... a5 {[%clk 0:01:14.5]} 31. Nc2 {[%clk 0:01:57.9]} 31...
Ba6 {[%clk 0:01:10.3]} 32. Nd4 {[%clk 0:01:56.4]} 32... Bd3 {[%clk 0:01:09.2]}
33. f4 {[%clk 0:01:43.6]} 33... f6 {[%clk 0:00:45.4]} 34. Kf2 {[%clk 0:01:38]}
34... Kf7 {[%clk 0:00:43.6]} 35. Ke1 {[%clk 0:01:35.8]} 35... h5 {[%clk
0:00:38.5]} 36. Kd2 {[%clk 0:01:35.3]} 36... Red7 {[%clk 0:00:34.4]} 37. fxg5
{[%clk 0:01:34]} 37... fxg5 {[%clk 0:00:34.2]} 38. h4 {[%clk 0:01:26]} 38... g4
{[%clk 0:00:21.1]} 39. Rxc7 {[%clk 0:01:19.2]} 39... Rxc7 {[%clk 0:00:21.4]} 40.
Ra1 {[%clk 0:01:19.8]} 40... Rc5 {[%clk 0:00:21.9]} 41. Rg1 {[%clk 0:01:13.6]}
41... Kf6 {[%clk 0:00:21.1]} 42. Rg2 {[%clk 0:01:13.6]} 42... a4 {[%clk
0:00:17.5]} 43. Rf2+ {[%clk 0:01:11.3]} 43... Kg6 {[%clk 0:00:17.7]} 44. bxa4
{[%clk 0:01:10.1]} 44... Ra5 {[%clk 0:00:18.3]} 45. Ne6 {[%clk 0:01:01.3]} 45...
Rxa4 {[%clk 0:00:17]} 46. Nf4+ {[%clk 0:01:02]} 46... Kh6 {[%clk 0:00:17.1]} 47.
Nxd3 {[%clk 0:01:02.9]} 47... exd3 {[%clk 0:00:17.2]} 48. Kxd3 {[%clk
0:01:03.8]} 48... Kg6 {[%clk 0:00:17.5]} 49. Rc2 {[%clk 0:00:58.3]} 49... Ra1
{[%clk 0:00:17.3]} 50. Ke4 {[%clk 0:00:57.7]} 50... Rg1 {[%clk 0:00:17.1]} 51.
Rc6+ {[%clk 0:00:57.1]} 51... Kg7 {[%clk 0:00:17]} 52. Kf4 {[%clk 0:00:57.6]}
52... Rf1+ {[%clk 0:00:17]} 53. Kg5 {[%clk 0:00:58.3]} 53... Rg1 {[%clk
0:00:17.5]} 54. Rc7+ {[%clk 0:00:56.6]} 54... Kf8 {[%clk 0:00:17]} 55. Rc8+
{[%clk 0:00:39.9]} 55... Kf7 {[%clk 0:00:16.4]} 56. Rc7+ {[%clk 0:00:34.7]}
56... Kf8 {[%clk 0:00:16.9]} 57. Kxh5 {[%clk 0:00:35.3]} 57... Rxg3 {[%clk
0:00:16.7]} 58. Kg5 {[%clk 0:00:36]} 58... Rxe3 {[%clk 0:00:16.9]} 59. Kxg4
{[%clk 0:00:36.4]} 59... Kg8 {[%clk 0:00:16.9]} 60. Kg5 {[%clk 0:00:36.1]} 60...
Rb3 {[%clk 0:00:16.8]} 61. Rc8+ {[%clk 0:00:34.1]} 61... Kg7 {[%clk 0:00:16.7]}
62. Rc4 {[%clk 0:00:35]} 62... Rb5+ {[%clk 0:00:16.4]} 63. Kg4 {[%clk
0:00:35.5]} 63... Kg6 {[%clk 0:00:16.1]} 64. Rc6+ {[%clk 0:00:35.5]} 64... Kg7
{[%clk 0:00:16.7]} 65. h5 {[%clk 0:00:36.2]} 65... Rb4+ {[%clk 0:00:17.1]} 66.
Kg5 {[%clk 0:00:36.9]} 66... Rb5+ {[%clk 0:00:17.8]} 67. Kg4 {[%clk 0:00:37.6]}
67... Rb4+ {[%clk 0:00:18.4]} 68. Kg5 {[%clk 0:00:38.4]} 68... Rb5+ {[%clk
0:00:19]} 69. Kg4 {[%clk 0:00:39.2]} 1/2-1/2

[Event "Late-Titled-Tuesday-Blitz-May-07-2024"]
[Site "Chess.com"]
[Date "2024.05.07"]
[Round "1"]
[White "Mikhail_Golubev"]
[Black "th3d4rkness"]
[Result "1-0"]
[WhiteElo "2608"]
[BlackElo "2222"]
[TimeControl "180+1"]
[EndTime "14:07:36 PDT"]
[Termination "Mikhail_Golubev won by resignation"]

1. e4 {[%clk 0:02:58.9]} 1... c5 {[%clk 0:02:57.3]} 2. Nf3 {[%clk 0:02:58.3]}
2... Nc6 {[%clk 0:02:56.8]} 3. Nc3 {[%clk 0:02:57.5]} 3... Nf6 {[%clk
0:02:55.8]} 4. Bb5 {[%clk 0:02:55.4]} 4... Nd4 {[%clk 0:02:52.3]} 5. e5 {[%clk
0:02:55.4]} 5... Nxf3+ {[%clk 0:02:48.9]} 6. Qxf3 {[%clk 0:02:53.5]} 6... Ng8
{[%clk 0:02:49.1]} 7. O-O {[%clk 0:02:40]} 7... e6 {[%clk 0:02:47.6]} 8. a4
{[%clk 0:02:29.2]} 8... a6 {[%clk 0:02:46.5]} 9. Bc4 {[%clk 0:02:24.6]} 9... d5
{[%clk 0:02:45.9]} 10. exd6 {[%clk 0:02:15]} 10... Bxd6 {[%clk 0:02:45]} 11. d3
{[%clk 0:02:14.7]} 11... Ne7 {[%clk 0:02:35.2]} 12. Ne4 {[%clk 0:02:09.4]} 12...
Nf5 {[%clk 0:02:30]} 13. Nxd6+ {[%clk 0:01:52.5]} 13... Qxd6 {[%clk 0:02:24.9]}
14. Bf4 {[%clk 0:01:50.7]} 14... Qe7 {[%clk 0:02:18.7]} 15. c3 {[%clk 0:01:49]}
15... O-O {[%clk 0:02:12.2]} 16. Rfe1 {[%clk 0:01:44.5]} 16... Rd8 {[%clk
0:02:04.3]} 17. a5 {[%clk 0:01:37.4]} 17... Nd6 {[%clk 0:01:50.5]} 18. Ba2
{[%clk 0:01:37]} 18... Bd7 {[%clk 0:01:46.1]} 19. Bd5 {[%clk 0:01:09.2]} 19...
Rab8 {[%clk 0:01:31.4]} 20. Bxd6 {[%clk 0:01:00.3]} 20... Qxd6 {[%clk
0:01:28.2]} 21. Bxb7 {[%clk 0:01:00.9]} 21... Bb5 {[%clk 0:01:19.9]} 22. c4
{[%clk 0:00:56.1]} 22... Be8 {[%clk 0:01:19]} 23. Ra3 {[%clk 0:00:45.1]} 23...
Qd4 {[%clk 0:01:04]} 24. Rb3 {[%clk 0:00:32.6]} 24... Ba4 {[%clk 0:00:59.8]} 25.
Rb6 {[%clk 0:00:32.3]} 25... Qxd3 {[%clk 0:00:54.7]} 26. Bxa6 {[%clk 0:00:10]}
26... Qxf3 {[%clk 0:00:50.4]} 27. gxf3 {[%clk 0:00:09.8]} 27... Rxb6 {[%clk
0:00:48.8]} 28. axb6 {[%clk 0:00:10.4]} 28... Rb8 {[%clk 0:00:46.5]} 29. b7
{[%clk 0:00:10.4]} 29... Bc6 {[%clk 0:00:43]} 30. Rd1 {[%clk 0:00:09.3]} 30...
g6 {[%clk 0:00:43.2]} 31. Rd6 {[%clk 0:00:08.2]} 31... Bxf3 {[%clk 0:00:39.7]}
32. b4 {[%clk 0:00:05.3]} 32... cxb4 {[%clk 0:00:38.9]} 33. Rb6 {[%clk
0:00:05.8]} 33... Kg7 {[%clk 0:00:35]} 34. c5 {[%clk 0:00:04.9]} 34... b3 {[%clk
0:00:30.6]} 35. Rxb3 {[%clk 0:00:02.9]} 35... Bd5 {[%clk 0:00:24.7]} 36. Rb6
{[%clk 0:00:03.2]} 36... Bxb7 {[%clk 0:00:20.4]} 37. Bxb7 {[%clk 0:00:01.9]}
37... Rd8 {[%clk 0:00:15.5]} 38. c6 {[%clk 0:00:02.1]} 38... Rd1+ {[%clk
0:00:15.5]} 39. Kg2 {[%clk 0:00:02.5]} 39... Rc1 {[%clk 0:00:15.5]} 40. Rb4
{[%clk 0:00:02.9]} 40... h5 {[%clk 0:00:14.2]} 41. Rd4 {[%clk 0:00:03.2]} 41...
Kf6 {[%clk 0:00:13.4]} 42. Rd7 {[%clk 0:00:03.7]} 42... h4 {[%clk 0:00:12.5]}
43. c7 {[%clk 0:00:03.9]} 43... Rc3 {[%clk 0:00:12.2]} 44. h3 {[%clk 0:00:03.5]}
1-0

[Event "Late-Titled-Tuesday-Blitz-May-07-2024"]
[Site "Chess.com"]
[Date "2024.05.07"]
[Round "1"]
[White "betta2004"]
[Black "sergiochess83"]
[Result "0-1"]
[WhiteElo "2516"]
[BlackElo "2880"]
[TimeControl "180+1"]
[EndTime "14:07:39 PDT"]
[Termination "sergiochess83 won by resignation"]

1. e4 {[%clk 0:03:00.4]} 1... e6 {[%clk 0:02:59.2]} 2. d4 {[%clk 0:02:58.5]}
2... d5 {[%clk 0:02:58.8]} 3. Bd3 {[%clk 0:02:59]} 3... dxe4 {[%clk 0:02:56.9]}
4. Bxe4 {[%clk 0:02:59.9]} 4... Nf6 {[%clk 0:02:57.1]} 5. Bf3 {[%clk 0:03:00.6]}
5... Bd6 {[%clk 0:02:52.5]} 6. Ne2 {[%clk 0:02:58.2]} 6... O-O {[%clk 0:02:50]}
7. Nbc3 {[%clk 0:02:58.5]} 7... Nbd7 {[%clk 0:02:41.8]} 8. Bg5 {[%clk
0:02:58.4]} 8... h6 {[%clk 0:02:38.9]} 9. Bh4 {[%clk 0:02:58.5]} 9... Re8 {[%clk
0:02:34.2]} 10. Qd2 {[%clk 0:02:56]} 10... e5 {[%clk 0:02:31.8]} 11. dxe5 {[%clk
0:02:42.7]} 11... Nxe5 {[%clk 0:02:31.3]} 12. O-O-O {[%clk 0:02:40.7]} 12... Be6
{[%clk 0:01:44.6]} 13. Bd5 {[%clk 0:02:21.2]} 13... Ng6 {[%clk 0:01:10.3]} 14.
Bxe6 {[%clk 0:02:13.8]} 14... Nxh4 {[%clk 0:01:10.1]} 15. Bb3 {[%clk 0:02:05.2]}
15... Qe7 {[%clk 0:01:06.2]} 16. Kb1 {[%clk 0:01:59.5]} 16... Rad8 {[%clk
0:01:05.2]} 17. Qc1 {[%clk 0:01:51.1]} 17... c6 {[%clk 0:00:59.5]} 18. g3 {[%clk
0:01:45.8]} 18... Nf3 {[%clk 0:00:55.2]} 19. Nd4 {[%clk 0:01:42.5]} 19... Nxd4
{[%clk 0:00:51.9]} 20. Rxd4 {[%clk 0:01:43.3]} 20... Be5 {[%clk 0:00:51.4]} 21.
Rxd8 {[%clk 0:01:42]} 21... Qxd8 {[%clk 0:00:51.5]} 22. Rd1 {[%clk 0:01:40.1]}
22... Qb6 {[%clk 0:00:48.4]} 23. Qd2 {[%clk 0:01:29.8]} 23... Bxc3 {[%clk
0:00:41.7]} 24. Qxc3 {[%clk 0:01:29.7]} 24... Qxf2 {[%clk 0:00:41.1]} 25. Qb4
{[%clk 0:01:23.8]} 25... Qb6 {[%clk 0:00:35.8]} 26. Qc4 {[%clk 0:01:21.4]} 26...
Qc7 {[%clk 0:00:32.2]} 27. a4 {[%clk 0:01:15.8]} 27... a6 {[%clk 0:00:29.5]} 28.
a5 {[%clk 0:01:14.8]} 28... Re5 {[%clk 0:00:26.4]} 29. Rf1 {[%clk 0:01:01.4]}
29... Rxa5 {[%clk 0:00:23.2]} 30. h4 {[%clk 0:00:59.5]} 30... h5 {[%clk
0:00:19.6]} 31. Re1 {[%clk 0:00:53.7]} 31... Rd5 {[%clk 0:00:18.1]} 32. Qf1
{[%clk 0:00:46.8]} 32... Re5 {[%clk 0:00:17]} 33. Rd1 {[%clk 0:00:46.7]} 33...
Qe7 {[%clk 0:00:16]} 34. Qf2 {[%clk 0:00:39.7]} 34... b5 {[%clk 0:00:13.2]} 35.
Qb6 {[%clk 0:00:34.5]} 35... Re1 {[%clk 0:00:11.2]} 36. Rxe1 {[%clk 0:00:35]}
36... Qxe1+ {[%clk 0:00:11]} 37. Ka2 {[%clk 0:00:35.9]} 37... Qxg3 {[%clk
0:00:09.7]} 38. Qxc6 {[%clk 0:00:32.8]} 38... Qxh4 {[%clk 0:00:07]} 39. Qc8+
{[%clk 0:00:31.8]} 39... Kh7 {[%clk 0:00:07.2]} 40. Bxf7 {[%clk 0:00:28.4]}
40... Qe4 {[%clk 0:00:07.3]} 41. Be6 {[%clk 0:00:27.1]} 41... Kh6 {[%clk
0:00:03.7]} 42. Bf5 {[%clk 0:00:22.1]} 42... Qc4+ {[%clk 0:00:03.3]} 43. Qxc4
{[%clk 0:00:22]} 43... bxc4 {[%clk 0:00:04.2]} 44. Ka3 {[%clk 0:00:21.6]} 44...
Nd5 {[%clk 0:00:03.4]} 45. Be6 {[%clk 0:00:20.7]} 45... Ne3 {[%clk 0:00:03.6]}
46. c3 {[%clk 0:00:20.4]} 46... g5 {[%clk 0:00:04]} 47. Kb4 {[%clk 0:00:20.8]}
47... g4 {[%clk 0:00:04.6]} 48. Kc5 {[%clk 0:00:21]} 48... g3 {[%clk 0:00:05.2]}
49. Bh3 {[%clk 0:00:20.7]} 49... h4 {[%clk 0:00:05.7]} 50. Kd4 {[%clk
0:00:20.6]} 50... g2 {[%clk 0:00:06.2]} 51. Bxg2 {[%clk 0:00:21.1]} 51... Nxg2
{[%clk 0:00:06.9]} 52. Kxc4 {[%clk 0:00:22]} 52... h3 {[%clk 0:00:07.4]} 53. b4
{[%clk 0:00:22.9]} 53... h2 {[%clk 0:00:08.3]} 54. b5 {[%clk 0:00:23.6]} 54...
axb5+ {[%clk 0:00:08.4]} 55. Kxb5 {[%clk 0:00:24.5]} 55... h1=Q {[%clk
0:00:08.9]} 56. c4 {[%clk 0:00:25.4]} 0-1